[Event "ESP-ch Teams Honor 2024"]
[Site "Melilla"]
[Date "2024.10.15"]
[Round "4.15"]
[White "Grigoryan, Karen H."]
[Black "Vokhidov, Shamsiddin"]
[Result "0-1"]
[ECO "D38"]
[WhiteElo "2582"]
[BlackElo "2668"]
[Annotator "TA"]
[PlyCount "80"]
[EventDate "2024.10.11"]
[EventType "team-tourn"]
[EventCountry "ESP"]
[SourceTitle "playchess.com"]
[Source "ChessBase"]
[SourceQuality "1"]
[WhiteTeam "Benalmadena"]
[BlackTeam "Andreu"]
[TimeControl "5400+30"]

{[%evp 17,80,10,14,0,-4,-18,-24,-28,-12,-9,-15,-7,0,0,0,-81,-58,-77,-65,-104,-113,-117,-130,-109,-113,-113,-98,-139,-108,-134,-132,-135,-141,-147,-147,-166,-89,-93,-89,-141,-102,-182,-197,-207,-176,-200,-130,-130,-130,-130,-130,-181,-130,-130,-249,-249,-249,-248,-121,-130,-130,-29983,-29984,-29984,-29985]} 1. Nf3 {[%emt 0:02:05]} d5 {[%emt 0:00:49]} 2. d4 {[%emt 0:00:19]} Nf6 {[%emt 0:00:06]} 3. c4 {[%emt 0:00:23]} e6 {[%emt 0:00:04]} 4. Nc3 {[%emt 0:00:38]} Bb4 {[%emt 0:01:38]} 5. Bg5 {[%emt 0:00:49]} h6 {[%emt 0:00:09]} 6. Bxf6 {[%emt 0:00:09]} Qxf6 {[%emt 0:00:02]} 7. Qa4+ {[%emt 0:02:23]} Nc6 {[%emt 0:00:06]} 8. e3 {[%emt 0:00:45]} O-O {[%emt 0:00:07]} 9. cxd5 {[%emt 0:01:16]} exd5 {[%emt 0:01:17]} 10. Bb5 {[%emt 0:00:19]} Bg4 {[%emt 0:16:11]} 11. Bxc6 {[%emt 0:05:37]} Bxc3+ {[%emt 0:00:15]} 12. bxc3 {[%emt 0:00:05] Schwarz hat minimalen Vorteil.} Bxf3 {[%emt 0:00:19]} 13. gxf3 {[%emt 0:05:22]} bxc6 {[%emt 0:03:22]} 14. Ke2 $1 {[%emt 0:03:35]} Rfb8 {[%emt 0:00:35]} 15. Rab1 {[%emt 0:03:43] Lässt Rb2+ nicht zu} c5 $36 {[%emt 0:08:57][%mdl 2048] Schwarz kämpft um Vorteil.} 16. Rhc1 {[%emt 0:18:10]} (16. Rhd1 $11 {bleibt in der Remisbreite.}) 16... Qg6 {[%emt 0:08:01]} 17. Rxb8+ {[%emt 0:10:12]} Rxb8 {[%emt 0:06:36][%cal Ba8b8,Bb8b2,Bb2c2][%mdl 32]} 18. dxc5 $15 {[%emt 0:00:30][%cal Oc1d1][%mdl 4096] Endspiel. KQR-KQR} Rb2+ {[%emt 0:00:30]} 19. Kf1 {[%emt 0:00:05] [#]} Qd3+ $1 {[%emt 0:00:51]} 20. Kg1 {[%emt 0:00:24] [#]} Qe2 $1 {[%emt 0:00:48][%csl LRa2,LRf2,LRf3]} 21. Rf1 {[%emt 0:06:50]} Qxf3 {[%emt 0:00:18] Schwarz hat aktiveres Spiel.} 22. a3 {[%emt 0:02:53]} h5 {[%emt 0:02:50]} 23. Qd7 {[%emt 0:00:58]} Rc2 {[%emt 0:04:39]} 24. Qxc7 {[%emt 0:02:31]} Rxc3 {[%emt 0:00:30] Zielt auf ...Rc4 ab.} 25. h3 {[%emt 0:05:21]} Kh7 {[%emt 0:02:53]} (25... Rxa3 26. Rc1 $15) 26. Kh2 {[%emt 0:00:42]} Rxa3 {[%emt 0:08:03]} (26... d4 $19 27. Qe5 Rd3 (27... Rxa3 28. Qxd4 Qf5 29. Rg1 $11)) 27. Qg3 $17 {[%emt 0:08:09]} Rxe3 {[%emt 0:13:36]} 28. fxe3 {[%emt 0:01:03]} (28. Qxf3 $142 Rxf3 29. Rc1) 28... Qxf1 {[%emt 0:00:03] KQ-KQ} 29. Qe5 {[%emt 0:02:33]} (29. Qf4 $17 {ist der einzige Weg für Weiss..} Qe2+ (29... Qxf4+ $2 30. exf4 d4 31. Kg1 $18) 30. Kg3) 29... Qf2+ $19 {[%emt 0:03:02]} 30. Kh1 {[%emt 0:00:06]} Qf3+ {[%emt 0:00:05]} 31. Kh2 {[%emt 0:00:10]} a5 {[%emt 0:04:31] Weiss muss nun ...a4 beachten.} 32. c6 {[%emt 0:02:23]} Qe2+ {[%emt 0:00:26]} 33. Kg3 {[%emt 0:00:00][%cal Oc6c7] [#]} h4+ $1 {[%emt 0:00:21]} 34. Kxh4 {[%emt 0:00:09] Droht Matt per Qh5+.} Qc4+ {[%emt 0:00:03]} 35. e4 {[%emt 0:00:16]} Qxc6 {[%emt 0:04:12]} 36. exd5 {[%emt 0:00:07]} Qc4+ {[%emt 0:01:02]} 37. Kg3 {[%emt 0:00:06]} Qd3+ (37... a4 $19 {und Schwarz behält klar die Oberhand.} 38. d6 (38. Qh5+ $2 Kg8 $19) 38... Qd3+ 39. Kg4 a3 40. Qf5+ Qxf5+ 41. Kxf5 a2) 38. Kf4 $17 {[%emt 0:06:02]} a4 {[%emt 0:00:42]} ({Viel schwächer ist} 38... Qxh3 39. d6 a4 40. Qe4+ g6 41. Qe7 $15) 39. Qf5+ $2 {[%emt 0:00:20][%mdl 8192]} (39. d6 $17) 39... Qxf5+ {[%emt 0:00:05]} 40. Kxf5 {[%emt 0:00:02]} Kg8 {[%emt 0:00:57] Gewichteter Fehlerwert: Weiß=0.38/Schwarz=0.12 (sehr präzise) .  Verlustzug:     	Weiß=1     	---        Fehler:       	Weiß=3     	Schwarz=2     Ungenau:       	Weiß=2     	Schwarz=1     OK:         	Weiß=9     	Schwarz=13    Bester:       	Weiß=8     	Schwarz=6     Stark:        	Weiß=1     	Schwarz=2     Brilliant:      	---       	Schwarz=1} 0-1

[Event "ESP-ch Teams Honor 2024"]
[Site "Melilla"]
[Date "2024.10.15"]
[Round "4.16"]
[White "Arizmendi Martinez, Julen Luis"]
[Black "Ladron De Guevara Pinto, Paolo"]
[Result "0-1"]
[ECO "B57"]
[WhiteElo "2507"]
[BlackElo "2388"]
[Annotator "TA"]
[PlyCount "68"]
[EventDate "2024.10.11"]
[EventType "team-tourn"]
[EventCountry "ESP"]
[SourceTitle "playchess.com"]
[Source "ChessBase"]
[SourceQuality "1"]
[WhiteTeam "Andreu"]
[BlackTeam "Benalmadena"]
[TimeControl "5400+30"]

{[%evp 11,68,7,50,33,39,27,31,10,25,11,29,10,12,-10,26,22,22,42,37,0,18,41,0,20,15,19,8,-12,-26,-30,-26,-30,-15,-62,-63,-66,-64,-70,-58,-50,-24,-225,-229,-425,-435,-431,-437,-416,-210,-330,-330,-304,-320,-298,-327,-298,-279,-589,-352]} 1. e4 {[%emt 0:00:07]} c5 {[%emt 0:00:07]} 2. Nf3 {[%emt 0:04:19]} d6 {[%emt 0:00:17]} 3. d4 {[%emt 0:00:44]} cxd4 {[%emt 0:00:07]} 4. Nxd4 {[%emt 0:00:06]} Nf6 {[%emt 0:00:05]} 5. Nc3 {[%emt 0:01:02]} Nc6 {[%emt 0:01:32]} 6. Bc4 {[%emt 0:04:00]} Na5 {[%emt 0:00:07]} 7. Be2 {[%emt 0:04:18]} g6 {[%emt 0:00:32]} 8. O-O {[%emt 0:25:33]} Bg7 {[%emt 0:00:40]} 9. Bg5 {[%emt 0:04:49] White is slightly better.} O-O {[%emt 0:12:09]} 10. Qd2 {[%emt 0:04:58]} Bd7 {[%emt 0:03:16]} 11. Nb3 {[%emt 0:11:53]} Be6 {[%emt 0:24:01]} 12. Bh6 {[%emt 0:08:37]} Rc8 {[%emt 0:05:45]} 13. Bxg7 {[%emt 0:00:49]} Kxg7 {[%emt 0:00:14] [#]} 14. e5 $1 {[%emt 0:00:56]} Ne8 {[%emt 0:06:05]} (14... dxe5 15. Qxd8 Rfxd8 16. Nxa5 $16) 15. exd6 {[%emt 0:03:56]} Nxd6 {[%emt 0:05:52]} 16. Qd4+ {[%emt 0:00:26]} Kg8 {[%emt 0:00:43]} 17. Qxa7 {[%emt 0:00:09]} Nac4 {[%emt 0:07:51]} 18. Bxc4 {[%emt 0:00:07]} Nxc4 {[%emt 0:04:42]} 19. Rfd1 {[%emt 0:10:15]} Qc7 {[%emt 0:01:20]} 20. Na4 {[%emt 0:10:07]} Bf5 {[%emt 0:12:18][%cal Oc8a8]} 21. Nd4 {[%emt 0:00:56]} Bd7 {[%emt 0:01:55] Hoping for ...Bxa4.} 22. b3 {[%emt 0:02:30]} (22. Rab1 $1 $11) 22... Bxa4 $1 $15 {[%emt 0:00:14]} 23. bxa4 {[%emt 0:00:15]} (23. Qxa4 $2 Nb2 24. Qb4 Nxd1 25. Rxd1 Rfd8 $19) 23... Ra8 {[%emt 0:00:53]} 24. Nb5 {[%emt 0:00:03] Qxa8 would now be deadly.} Qc6 {[%emt 0:05:00]} (24... Rxa7 {simplifies} 25. Nxc7 Rxa4 26. g3 Rc8) 25. Qd4 {[%emt 0:00:06]} e5 {[%emt 0:01:11]} 26. Qh4 {[%emt 0:01:45] Loses the game.} (26. Qc3 $11) 26... Rxa4 $19 {[%emt 0:01:04] And now ...Ne3 would win.} 27. Nc3 $2 {[%emt 0:00:40] [#]} (27. Rdb1) 27... Ne3 $1 {[%emt 0:00:52][%csl Ge3][%cal Rc6g2][%mdl 512]} 28. Qh3 {[%emt 0:00:22]} Nxd1 {[%emt 0:02:06]} (28... Qxc3 29. Qxe3 Qxe3 (29... Qxc2 30. Rdc1 $15) 30. fxe3 $17) 29. Nxa4 {[%emt 0:00:03]} Nxf2 $40 {[%emt 0:01:28][%mdl 128] Black is out for blood.} ({But not} 29... Qxc2 30. Qf3 Nxf2 (30... Qxa4 31. Rxd1 Qxa2 32. Qxb7 $15) 31. Qxf2 Qxa4 32. h3 $19) (29... Qxa4 30. Rxd1 Qxc2 (30... Qxa2 31. Qc3 $17) 31. Qd7 $17) (29... Rd8 $142 30. Qf3 Qxc2) 30. Qf3 {[%emt 0:01:05]} (30. Qc3 $142 Qxc3 (30... Qxa4 $2 31. Kxf2 Qa7+ 32. Kf1 $19) 31. Nxc3) 30... Ne4 {[%emt 0:00:54]} 31. Re1 {[%emt 0:00:31]} f5 {[%emt 0:00:15]} ({Don't do} 31... Qxa4 32. Qxe4 Qxa2 33. Qxb7 $19) 32. Qb3+ {[%emt 0:00:20]} Kg7 {[%emt 0:00:06]} 33. h3 {[%emt 0:00:40]} Rd8 {[%emt 0:01:00] White must now prevent ...Rd2.} 34. Qb6 $2 {[%emt 0:00:21]} (34. Qb4 Kf6 (34... Qxc2 35. Qe7+ Kh6 36. Qh4+ Kg7 37. Qe7+ Kh6 38. Qh4+ Kg7 39. Qe7+ $11) 35. c4) 34... Ra8 {[%emt 0:00:55] Weighted Error Value: White=0.48/Black=0.16 (very precise) .  Loses game:     	White=1     	---        Mistake:       	White=4     	Black=1      Inaccurate:     	---       	Black=3      OK:         	White=11    	Black=11     Best:        	White=1     	Black=1      Strong:       	---       	Black=1      Brilliant:      	---       	Black=1} 0-1

[Event "ESP-ch Teams Honor 2024"]
[Site "Melilla"]
[Date "2024.10.15"]
[Round "4.17"]
[White "Lin, Yingrui"]
[Black "Macias Pino, Diego"]
[Result "1-0"]
[ECO "A07"]
[WhiteElo "2378"]
[BlackElo "2479"]
[Annotator "TA"]
[PlyCount "69"]
[EventDate "2024.10.11"]
[EventType "team-tourn"]
[EventCountry "ESP"]
[SourceTitle "playchess.com"]
[Source "ChessBase"]
[SourceQuality "1"]
[WhiteTeam "Benalmadena"]
[BlackTeam "Andreu"]
[TimeControl "5400+30"]

{[%evp 20,68,8,0,17,10,26,0,2,-31,-14,-8,0,0,0,0,0,6,15,0,35,49,70,71,110,99,220,146,187,196,190,186,452,466,600,595,639,601,714,690,664,537,463,278,300,281,799,799,1436,1449,29999]} 1. Nf3 {[%emt 0:00:05]} d5 {[%emt 0:00:04]} 2. g3 {[%emt 0:00:05]} c6 {[%emt 0:00:02]} 3. Bg2 {[%emt 0:00:10]} Bf5 {[%emt 0:00:04]} 4. O-O {[%emt 0:00:16]} e6 {[%emt 0:00:04]} 5. d3 {[%emt 0:02:46]} Nf6 {[%emt 0:01:01]} 6. b3 {[%emt 0:00:34]} h6 {[%emt 0:00:47]} 7. Bb2 {[%emt 0:00:16]} Be7 {[%emt 0:00:10]} 8. Nbd2 {[%emt 0:01:23]} O-O {[%emt 0:01:27]} 9. Re1 {[%emt 0:04:24]} Bh7 {[%emt 0:00:15]} 10. e4 {[%emt 0:00:15]} a5 {[%emt 0:01:28]} 11. a3 {[%emt 0:06:15]} Na6 {[%emt 0:03:42]} 12. Qe2 {[%emt 0:04:54]} Rc8 {[%emt 0:04:07]} 13. h3 {[%emt 0:04:05]} Re8 {[%emt 0:02:27] The position is equal.} 14. g4 {[%emt 0:02:35]} Nd7 {[%emt 0:03:26]} 15. Nf1 {[%emt 0:10:45]} Bf6 {[%emt 0:14:50]} 16. Bxf6 {[%emt 0:02:29]} Qxf6 {[%emt 0:02:24]} 17. e5 {[%emt 0:00:09]} Qd8 {[%emt 0:02:48]} 18. Ng3 {[%emt 0:07:13]} Nf8 {[%emt 0:04:52]} 19. h4 {[%emt 0:01:58]} Ng6 {[%emt 0:01:06]} 20. g5 {[%emt 0:02:54]} hxg5 {[%emt 0:16:46]} 21. Nxg5 {[%emt 0:00:18]} Ne7 {[%emt 0:02:55] [#]} 22. Bh3 $1 {[%emt 0:06:58] White is much more active.} Bg6 {[%emt 0:05:04] This costs Black the game.} (22... Nc5 $16 23. Qg4 Rc7) 23. Qf3 {[%emt 0:05:34]} Rf8 {[%emt 0:02:54]} 24. Kh1 {[%emt 0:02:10]} Nc7 {[%emt 0:04:15]} 25. Rg1 {[%emt 0:02:54]} f5 $2 {[%emt 0:01:33]} (25... Qd7) 26. Nh5 {[%emt 0:02:13]} Qd7 {[%emt 0:04:20]} 27. Nf4 {[%emt 0:01:29] Nxg6 is the strong threat.} Be8 {[%emt 0:03:03]} 28. Rg2 {[%emt 0:00:37] And now Rag1 would win.} Kh8 {[%emt 0:01:43]} 29. Rag1 {[%emt 0:02:00]} Ng8 {[%emt 0:00:57][%cal Be7g8,Bg8h6,Bh6f7][%mdl 32]} 30. h5 {[%emt 0:02:24]} Nh6 {[%emt 0:00:55]} 31. Ng6+ {[%emt 0:01:06]} Bxg6 {[%emt 0:00:39]} 32. hxg6 {[%emt 0:00:02] Black must now prevent Qh5.} d4 $2 {[%emt 0:03:13]} (32... Kg8 33. Qh5 Ne8) 33. Qh5 $18 {[%emt 0:04:08]} Kg8 {[%emt 0:00:22] [#]} 34. Nf7 $1 {[%emt 0:01:30][%mdl 512]} Nxf7 {[%emt 0:03:05]} (34... Rxf7 35. gxf7+) 35. Qh7# {[%emt 0:00:08] Weighted Error Value: White=0.24 (precise) /Black=0.74.  Mistake:       	---       	Black=3      Inaccurate:     	White=3     	Black=3      OK:         	White=6     	Black=1      Best:        	White=3     	Black=2      Strong:       	White=1     	---} 1-0

[Event "ESP-ch Teams Honor 2024"]
[Site "Melilla"]
[Date "2024.10.15"]
[Round "4.18"]
[White "Vega Gutierrez, Belinda"]
[Black "Matnadze Bujiashvili, Ann"]
[Result "0-1"]
[ECO "C41"]
[WhiteElo "2168"]
[BlackElo "2309"]
[Annotator "RC"]
[PlyCount "56"]
[EventDate "2024.10.11"]
[EventType "team-tourn"]
[EventCountry "ESP"]
[SourceTitle "playchess.com"]
[Source "ChessBase"]
[SourceQuality "1"]
[WhiteTeam "Andreu"]
[BlackTeam "Benalmadena"]
[TimeControl "5400+30"]

1. e4 {[%emt 0:00:04]} e5 {[%emt 0:00:04]} 2. Nf3 {[%emt 0:00:10]} d6 {[%emt 0:00:11]} 3. d4 {[%emt 0:00:29]} exd4 {[%emt 0:00:05]} 4. Nxd4 {[%emt 0:00:08]} Nf6 {[%emt 0:00:04]} 5. Nc3 {[%emt 0:00:08]} Be7 {[%emt 0:00:04]} 6. Bf4 {[%emt 0:01:05]} O-O {[%emt 0:00:24]} 7. Qd2 {[%emt 0:00:21]} Nc6 {[%emt 0:00:11]} 8. O-O-O {[%emt 0:01:12]} Nxd4 {[%emt 0:00:15]} 9. Qxd4 {[%emt 0:00:11]} Be6 {[%emt 0:00:09]} 10. f3 {[%emt 0:00:59]} a6 {[%emt 0:00:13]} 11. g4 {[%emt 0:00:18]} b5 {[%emt 0:00:10]} 12. Kb1 {[%emt 0:05:04]} c5 {[%emt 0:00:51]} 13. Qe3 {[%emt 0:00:40]} b4 {[%emt 0:02:37]} 14. Nd5 {[%emt 0:03:53]} Nxd5 {[%emt 0:00:51]} 15. exd5 {[%emt 0:00:15]} Bd7 {[%emt 0:00:50]} 16. g5 {[%emt 0:04:28]} Re8 {[%emt 0:01:32]} 17. Qd2 {[%emt 0:00:19]} Bf5 {[%emt 0:06:45]} 18. h4 {[%emt 0:02:09]} a5 {[%emt 0:15:27]} 19. h5 {[%emt 0:27:02]} b3 {[%emt 0:10:48]} 20. axb3 {[%emt 0:01:01]} a4 {[%emt 0:00:03]} 21. bxa4 {[%emt 0:04:12]} Rxa4 {[%emt 0:03:03]} 22. Bb5 {[%emt 0:04:12]} Qa8 {[%emt 0:01:34]} 23. Bxa4 {[%emt 0:00:32]} Qxa4 {[%emt 0:00:01]} 24. Qh2 {[%emt 0:03:00]} Ra8 {[%emt 0:06:01]} 25. Kc1 {[%emt 0:00:14]} Qb4 {[%emt 0:06:53]} 26. Kb1 {[%emt 0:07:08]} Qb3 {[%emt 0:22:10]} 27. Rhe1 {[%emt 0:08:17]} Ra2 {[%emt 0:01:19]} 28. Bc1 {[%emt 0:00:09]} Qa4 {[%emt 0:00:42]} 0-1

[Event "ESP-ch Teams Honor 2024"]
[Site "Melilla"]
[Date "2024.10.15"]
[Round "4.19"]
[White "Murzin, Volodar"]
[Black "Alekseenko, Kirill"]
[Result "1-0"]
[ECO "C84"]
[WhiteElo "2648"]
[BlackElo "2679"]
[Annotator "TA"]
[PlyCount "125"]
[EventDate "2024.10.11"]
[EventType "team-tourn"]
[EventCountry "ESP"]
[SourceTitle "playchess.com"]
[Source "ChessBase"]
[SourceQuality "1"]
[WhiteTeam "Extremadura"]
[BlackTeam "Silla"]
[TimeControl "5400+30"]

{[%evp 20,125,20,26,25,14,36,23,17,0,25,11,25,11,8,-4,9,3,8,6,85,77,89,38,66,36,146,150,156,156,158,170,169,164,249,238,252,126,129,27,180,187,183,191,456,443,431,437,443,454,408,418,506,449,435,433,493,476,511,492,508,500,477,472,549,382,398,383,369,318,376,337,620,413,652,478,455,462,511,508,476,523,479,447,590,593,578,445,451,439,450,441,439,395,580,551,449,590,815,815,810,801,800,793,779,779,749,737]} 1. e4 {[%emt 0:01:05]} e5 {[%emt 0:01:46]} 2. Nf3 {[%emt 0:00:05]} Nc6 {[%emt 0:00:08]} 3. Bb5 {[%emt 0:00:06]} a6 {[%emt 0:00:37]} 4. Ba4 {[%emt 0:00:05]} Nf6 {[%emt 0:00:12]} 5. O-O {[%emt 0:00:08]} Be7 {[%emt 0:00:18]} 6. d3 {[%emt 0:00:12]} d6 {[%emt 0:00:43]} 7. c3 {[%emt 0:08:30]} O-O {[%emt 0:00:35]} 8. Nbd2 {[%emt 0:00:17][%cal Bb1d2,Bd2f1,Bf1g3][%mdl 32]} Re8 {[%emt 0:00:42]} 9. Re1 {[%emt 0:03:05]} Bf8 {[%emt 0:00:27]} 10. Nf1 {[%emt 0:00:31]} h6 {[%emt 0:00:32]} 11. Ng3 {[%emt 0:01:21]} b5 {[%emt 0:00:27]} 12. Bc2 {[%emt 0:00:35]} a5 {[%emt 0:01:14]} 13. a4 {[%emt 0:14:52]} b4 {[%emt 0:00:24] White has an edge.} 14. h3 {[%emt 0:01:58]} bxc3 {[%emt 0:09:13]} 15. bxc3 {[%emt 0:00:05]} Rb8 {[%emt 0:00:23]} 16. Be3 {[%emt 0:07:09]} d5 {[%emt 0:09:23]} 17. d4 {[%emt 0:18:39]} dxe4 {[%emt 0:11:27]} 18. Nxe5 {[%emt 0:07:55]} Nxe5 {[%emt 0:01:07]} 19. dxe5 {[%emt 0:00:02]} Nd5 {[%emt 0:00:08]} (19... Qxd1 $11 {keeps the balance.} 20. Raxd1 Rb2) 20. Ba7 $16 {[%emt 0:03:35]} (20. Bxe4 $6 Nxc3 21. Qxd8 Rxd8 $11) (20. Nxe4 $6 Nxe3 21. Qxd8 Rxd8 $15) 20... Ra8 {[%emt 0:26:43]} 21. Bxe4 {[%emt 0:02:00]} (21. Qd4 $16) 21... Be6 $1 $14 {[%emt 0:00:15]} 22. Bd4 {[%emt 0:13:04]} Rb8 {[%emt 0:09:01]} (22... c5 $14 23. c4 Nb4 (23... cxd4 24. cxd5 Bxd5 25. Qxd4 $14)) 23. Qf3 $1 $16 {[%emt 0:03:39]} c5 {[%emt 0:02:19]} 24. c4 $1 $36 {[%emt 0:03:09][%mdl 2048] White is in control.} Nb6 {[%emt 0:03:33][%cal Bd5b6,Bb6c4,Bc4b2][%mdl 32]} 25. Bc3 {[%emt 0:00:02]} Nxc4 {[%emt 0:00:55]} 26. Rad1 {[%emt 0:03:26] Inhibits Nd2.} Qc7 {[%emt 0:03:38]} (26... Qg5 {keeps fighting.} 27. Nf5 h5) 27. Nh5 $1 $18 {[%emt 0:03:32]} Nb2 {[%emt 0:02:09] [#]} 28. Rd6 {[%emt 0:03:06][%mdl 512]} Nxa4 $16 {[%emt 0:02:34][%cal Ob8b3] [#] ...Rb3! would now be deadly.} 29. Ba1 {[%emt 0:01:52] White has more active pieces.} (29. Rc6 Qd8 30. Rd1 Qe7 31. Nf6+ (31. Bxa5 Nb2 $16) 31... Kh8 (31... gxf6 $2 32. exf6 Qa7 33. Be5 $18) 32. Nxe8 Nxc3 33. Nxg7 (33. Qxc3 Qxe8 34. Rxc5 Bxc5 $11) 33... Nxd1 34. Nxe6 fxe6 $18) (29. Bd2 $1 $16 {[%cal Rd2h6]} Rb3 (29... Bxd6 30. exd6 Qxd6 31. Bf4 $18) 30. Bd3) 29... Rb3 $2 {[%emt 0:00:22] [#] Black cannot hold the game after this.} (29... c4 $1 $11 {and Black is okay.}) 30. Rxe6 $1 $18 {[%emt 0:00:45][%mdl 512] Nf6+ would kill now.} Rxf3 {[%emt 0:07:17]} 31. Rxe8 {[%emt 0:00:01]} Qd7 $2 {[%emt 0:00:18]} (31... Ra3 {might work better.}) 32. Rxf8+ {[%emt 0:00:36]} Kxf8 {[%emt 0:00:03]} 33. Bxf3 {[%emt 0:00:04]} (33. gxf3 c4 $16) 33... c4 {[%emt 0:00:02] [#]} 34. e6 $1 {[%emt 0:01:20]} fxe6 {[%emt 0:00:04]} 35. Bxg7+ {[%emt 0:00:18] A strong pair of Bishops.} Kf7 {[%emt 0:01:58]} 36. Bg4 {[%emt 0:00:25]} Nc5 {[%emt 0:02:42]} 37. Bc3 {[%emt 0:00:14]} (37. Bxh6 c3 38. Rc1 Qd4 $16) 37... Qd3 {[%emt 0:02:22]} 38. Re3 {[%emt 0:00:04]} (38. Bxa5 c3 39. Bb4 Qc4 40. Bxc5 Qxc5 $18) 38... Qb1+ {[%emt 0:00:25]} 39. Kh2 {[%emt 0:00:01]} a4 {[%emt 0:01:06]} 40. Bd4 {[%emt 0:01:45]} Qb8+ {[%emt 0:01:56]} 41. Be5 {[%emt 0:00:23]} Qa8 {[%emt 0:00:59]} 42. Bd6 {[%emt 0:00:42]} Qc6 {[%emt 0:00:32]} 43. Rf3+ {[%emt 0:00:17]} Ke8 {[%emt 0:00:25]} 44. Rf8+ {[%emt 0:00:46]} Kd7 {[%emt 0:00:00]} 45. Be5 {[%emt 0:00:39]} Ke7 $2 {[%emt 0:00:11]} (45... Nd3 46. Bf3 Qb5) 46. Rh8 {[%emt 0:00:29]} Qe4 {[%emt 0:00:48] [#] Inhibits Rh7+.} (46... Nd7 $142 47. Bc3 Qc5 48. Rh7+ (48. Rxh6 Nf8 $18) 48... Kd6 49. Rxh6 Nf8) 47. Re8+ $3 {[%emt 0:00:27][%mdl 512]} Kf7 {[%emt 0:00:01]} 48. Bd6 {[%emt 0:00:00]} Kxe8 {[%emt 0:01:34]} 49. Nf6+ {[%emt 0:00:02]} (49. Bxc5 $2 Qe5+ 50. Kg1 Qxc5 $19) 49... Kf7 {[%emt 0:00:04]} 50. Nxe4 {[%emt 0:00:04]} Nxe4 {[%emt 0:00:03]} 51. Ba3 {[%emt 0:01:36]} Nc3 {[%emt 0:01:20]} 52. Bh5+ {[%emt 0:00:12]} Kg8 {[%emt 0:00:00]} 53. Bg6 {[%emt 0:00:57]} Nb5 {[%emt 0:00:18][%cal Og8g7] White must now prevent ...Kg7!} 54. Bc1 {[%emt 0:00:36]} a3 {[%emt 0:00:26][%cal Ba4a3,Ba3a2][%mdl 32]} 55. Bb1 {[%emt 0:00:36]} (55. Bxh6 $2 a2 56. Bh5 a1=Q $19 (56... a1=B $2 57. Be2 $18)) 55... Nc3 {[%emt 0:00:59]} 56. Bc2 {[%emt 0:00:07]} Nb5 {[%emt 0:00:47]} (56... a2 $142 57. Bb2 (57. Bxh6 $2 a1=Q $19) 57... Nd5) 57. Ba4 {[%emt 0:00:24] White is clearly winning.} (57. Bxh6 $2 a2 58. g3 a1=Q $19 (58... a1=B 59. Ba4 $16)) 57... a2 {[%emt 0:00:33]} 58. Bb2 {[%emt 0:00:01] Wards off a1Q} (58. Bxb5 $2 a1=Q (58... a1=B 59. Bxc4 Bd4 60. Bxe6+ Kg7 61. Kg3 $18) 59. Bf4 Qd4 $19) 58... c3 {[%emt 0:00:16][%cal Bc4c3,Bc3c2][%mdl 32]} 59. Ba1 {[%emt 0:00:03]} Kf7 {[%emt 0:00:37]} 60. Bb3 {[%emt 0:00:45]} (60. Bxb5 $2 {is the wrong capture.} c2 61. Bb2 (61. Be8+ $2 Kxe8 62. Bb2 Kf8 $19) 61... a1=Q 62. Bxa1 c1=Q $19 (62... c1=B $2 {perishes.} 63. Kg3 $18)) 60... Ke7 {[%emt 0:00:37]} 61. Bxa2 {[%emt 0:00:15]} c2 {[%emt 0:00:28]} 62. Bb2 {[%emt 0:00:02]} Kd6 {[%emt 0:00:25]} 63. Bc4 {[%emt 0:00:17] Weighted Error Value: White=0.33/Black=0.59.  Mistake:       	White=3     	Black=8      Inaccurate:     	White=2     	Black=2      OK:         	White=20    	Black=18     Best:        	White=8     	Black=3      Strong:       	White=2     	Black=1      Brilliant:      	White=2     	---} 1-0